fUST/lending_fUST_20250717
["ID","MTS","AMOUNT","RATE_DAILY","PERIOD"]
[372580192,1752691855649,-460.0,0.00022191,2]
[372580193,1752691855659,-657.78,0.00022191,2]
[372580194,1752691855668,-736.37,0.00022191,2]
[372580195,1752691855679,-707.16,0.00022191,2]
[372580196,1752691855688,-1707.87,0.00022191,2]
[372580197,1752691855697,-460.0,0.00022191,2]
[372580198,1752691855707,-473.52,0.00022191,2]
[372580199,1752691855716,-672.05,0.00022191,2]
[372580200,1752691855726,-460.0,0.00022191,2]
[372580201,1752691855736,-460.0,0.00022191,2]
[372580202,1752691855746,-754.8,0.00022191,2]
[372580203,1752691855755,-2035.47,0.00022191,2]
[372580204,1752691855765,-2856.91,0.00022191,2]
[372580205,1752691855774,-1429.59,0.00022191,2]
[372580206,1752691855784,-694.94,0.00022191,2]
[372580207,1752691855794,-460.0,0.00022191,2]
[372580208,1752691855803,-1651.48,0.00022191,2]
[372580209,1752691855812,-460.0,0.00022191,2]
[372580210,1752691855822,-819.02,0.00022191,2]
[372580211,1752691855831,-524.37,0.00022191,2]
[372580212,1752691855841,-460.0,0.00022191,2]
[372580213,1752691855851,-2569.94,0.00022191,2]
[372580214,1752691855861,-2591.26,0.00022191,2]
[372580215,1752691855871,-604.35,0.00022191,2]
[372580216,1752691855880,-546.21,0.00022191,2]
[372580217,1752691855890,-854.66,0.00022191,2]
[372580218,1752691855899,-2805.27,0.00022191,2]
[372580219,1752691855909,-460.0,0.00022191,2]
[372580220,1752691855919,-192.0,0.00022192,7]
[372580221,1752691855928,-151.0,0.00022192,2]
[372580222,1752691855938,-151.0,0.00022192,2]
[372580223,1752691855948,-1502.0,0.00022192,2]
[372580224,1752691855958,-151.0,0.00022192,2]
[372580225,1752691855968,-151.0,0.00022192,2]
[372580226,1752691855978,-151.0,0.00022192,2]
[372580227,1752691855988,-500.0,0.00022192,2]
[372580228,1752691855998,-500.0,0.00022192,2]
[372580229,1752691856008,-191.13645195,0.00022192,2]
[372580230,1752691856017,-151.0,0.00022192,2]
[372580231,1752691856034,-151.0,0.00022192,2]
[372580232,1752691856045,-151.0,0.00022192,2]
[372580233,1752691856055,-671.0,0.00022192,2]
[372580234,1752691856066,-151.0,0.00022192,2]
[372580235,1752691856076,-500.0,0.00022192,2]
[372580236,1752691856085,-1421.256571,0.000222,7]
[372580237,1752691856095,-1421.256571,0.000222,7]
[372580238,1752691856105,-307.92734894,0.00022201,2]
[372580239,1752691856116,-207.4,0.00022256,2]
[372580240,1752691856126,-25000.0,0.00022256,2]
[372580241,1752691856136,-1128.6027529,0.00022256,2]
[372580242,1752691856147,-500.0,0.00022256,2]
[372580243,1752691856156,-500.0,0.00022256,2]
[372580244,1752691856166,-500.0,0.00022256,2]
[372580245,1752691856175,-500.0,0.00022256,2]
[372580246,1752691856186,-500.0,0.00022256,2]
[372580247,1752691856196,-500.0,0.00022256,2]
[372580248,1752691856205,-500.0,0.00022256,2]
[372580249,1752691856215,-507.28079603,0.00022256,2]
[372580250,1752691856224,-170.8215365,0.00022256,2]
[372580251,1752691856235,-324.0,0.00022256,3]
[372580252,1752691856245,-324.0,0.00022256,3]
[372580253,1752691856254,-151.0,0.00022256,7]
[372580254,1752691856263,-1786.99136479,0.00022256,2]
[372580255,1752691856273,-324.0,0.00022256,3]
[372580256,1752691856283,-324.0,0.00022256,3]
[372580257,1752691856293,-324.0,0.00022256,3]
[372580258,1752691856304,-324.0,0.00022256,3]
[372580259,1752691856314,-324.0,0.00022256,3]
[372580260,1752691856324,-324.0,0.00022256,3]
[372580261,1752691856333,-324.0,0.00022256,3]
[372580262,1752691856343,-324.0,0.00022256,3]
[372580263,1752691856352,-324.0,0.00022256,3]
[372580264,1752691856363,-324.0,0.00022256,3]
[372580265,1752691856372,-324.0,0.00022256,3]
[372580266,1752691856382,-324.0,0.00022256,3]
[372580267,1752691856391,-324.0,0.00022256,3]
[372580268,1752691856401,-324.0,0.00022256,3]
[372580269,1752691856411,-324.0,0.00022256,3]
[372580270,1752691856420,-324.0,0.00022256,3]
[372580271,1752691856430,-324.0,0.00022256,3]
[372580272,1752691856439,-324.0,0.00022256,3]
[372580273,1752691856449,-324.0,0.00022256,3]
[372580274,1752691856459,-151.0,0.00022256,7]
[372580275,1752691856468,-324.0,0.00022256,3]
[372580276,1752691856477,-324.0,0.00022256,3]
[372580277,1752691856487,-324.0,0.00022256,3]
[372580278,1752691856497,-324.0,0.00022256,3]
[372580279,1752691856507,-324.0,0.00022256,3]
[372580280,1752691856516,-324.0,0.00022256,3]
[372580281,1752691856525,-151.0,0.00022256,7]
[372580282,1752691856535,-324.0,0.00022256,3]
[372580283,1752691856545,-324.0,0.00022256,3]
[372580284,1752691856555,-324.0,0.00022256,3]
[372580285,1752691856564,-324.0,0.00022256,3]
[372580286,1752691856573,-324.0,0.00022256,3]
[372580287,1752691856584,-324.0,0.00022256,3]
[372580288,1752691856593,-324.0,0.00022256,3]
[372580289,1752691856602,-324.0,0.00022256,3]
[372580290,1752691856613,-324.0,0.00022256,3]
[372580291,1752691856622,-324.0,0.00022256,3]
[372580292,1752691856632,-324.0,0.00022256,3]
[372580293,1752691856641,-324.0,0.00022256,3]
[372580294,1752691856651,-324.0,0.00022256,3]
[372580295,1752691856661,-324.0,0.00022256,3]
[372580296,1752691856670,-324.0,0.00022256,3]
[372580297,1752691856680,-324.0,0.00022256,3]
[372580298,1752691856690,-324.0,0.00022256,3]
[372580299,1752691856699,-324.0,0.00022256,3]
[372580300,1752691856709,-324.0,0.00022256,3]
[372580301,1752691856719,-324.0,0.00022256,3]
[372580302,1752691856728,-412.33697318,0.00022256,3]
[372580303,1752691856738,-152.0,0.00022256,3]
[372580304,1752691856748,-152.0,0.00022256,3]
[372580305,1752691856758,-152.0,0.00022256,3]
[372580306,1752691856767,-172.0,0.00022256,3]
[372580307,1752691856778,-152.0,0.00022256,3]
[372580308,1752691856787,-172.0,0.00022256,3]
[372580309,1752691856799,-153.0,0.00022256,3]
[372580310,1752691856808,-152.0,0.00022256,3]
[372580311,1752691856818,-172.0,0.00022256,3]
[372580312,1752691856827,-1751.0,0.00022256,3]
[372580313,1752691856836,-152.0,0.00022256,3]
[372580314,1752691856846,-1751.0,0.00022256,3]
[372580315,1752691856855,-172.0,0.00022256,3]
[372580316,1752691856865,-1751.0,0.00022256,3]
[372580317,1752691856875,-152.0,0.00022256,3]
[372580318,1752691856884,-153.0,0.00022256,3]
[372580319,1752691856894,-173.49686459,0.00022256,3]
[372580320,1752691856903,-1751.0,0.00022256,3]
[372580321,1752691856913,-152.0,0.00022256,3]
[372580322,1752691856922,-153.0,0.00022256,3]
[372580323,1752691856932,-172.0,0.00022256,3]
[372580324,1752691856941,-1751.0,0.00022256,3]
[372580325,1752691856951,-152.0,0.00022256,3]
[372580326,1752691856960,-153.0,0.00022256,3]
[372580327,1752691856970,-152.0,0.00022256,3]
[372580328,1752691856979,-1751.0,0.00022256,3]
[372580329,1752691856989,-152.0,0.00022256,3]
[372580330,1752691856998,-153.0,0.00022256,3]
[372580331,1752691857008,-1751.0,0.00022256,3]
[372580332,1752691857019,-153.0,0.00022256,3]
[372580333,1752691857029,-1751.0,0.00022256,3]
[372580334,1752691857042,-153.0,0.00022256,3]
[372580335,1752691857052,-152.0,0.00022256,3]
[372580336,1752691857062,-1751.0,0.00022256,3]
[372580337,1752691857071,-153.0,0.00022256,3]
[372580338,1752691857082,-152.0,0.00022256,3]
[372580339,1752691857091,-1751.0,0.00022256,3]
[372580340,1752691857101,-153.0,0.00022256,3]
[372580341,1752691857112,-1751.0,0.00022256,3]
[372580342,1752691857122,-158.61874939,0.00022256,3]
[372580343,1752691857131,-1751.0,0.00022256,3]
[372580344,1752691857141,-1751.0,0.00022256,3]
[372580345,1752691857150,-152.0,0.00022256,3]
[372580346,1752691857160,-1751.0,0.00022256,3]
[372580347,1752691857169,-152.0,0.00022256,3]
[372580348,1752691857179,-152.0,0.00022256,3]
[372580349,1752691857189,-1751.0,0.00022256,3]
[372580350,1752691857198,-214.40824756,0.0002226,3]
[372580351,1752691857208,-500.0,0.00022273,2]
[372580352,1752691857217,-500.0,0.00022273,2]
[372580353,1752691857227,-158.13031475,0.00022273,2]
[372580354,1752691857236,-500.80122548,0.00022273,2]
[372580355,1752691857246,-471.88357901,0.00022273,2]
[372580356,1752691857255,-500.0,0.00022273,2]
[372580357,1752691857265,-500.0,0.00022273,2]
[372580358,1752691857275,-500.0,0.00022273,2]
[372580359,1752691857286,-500.0,0.00022273,2]
[372580360,1752691857297,-506.54450191,0.00022273,2]
[372580361,1752691857306,-2416.0,0.00022289,2]
[372580362,1752691857316,-6578.69,0.000223,7]
[372580363,1752691857326,-656.64663739,0.000223,2]
[372580364,1752691857336,-2416.0,0.00022301,2]
[372580365,1752691857345,-460.0,0.00022324,2]
[372580366,1752691857355,-500.0,0.00022373,2]
[372580367,1752691857367,-150.6881,0.00022378,2]
[372580368,1752691857377,-500.0,0.00022378,2]
[372580369,1752691857387,-5902.78850771,0.00022383,7]
[372580370,1752691857396,-151.0,0.0002239,7]
[372580371,1752691857406,-151.0,0.0002239,7]
[372580372,1752691857415,-151.0,0.0002239,7]
[372580373,1752691857424,-151.0,0.0002239,7]
[372580374,1752691857434,-151.0,0.0002239,7]
[372580375,1752691857444,-151.0,0.0002239,7]
[372580376,1752691857454,-232.87420986,0.0002239,2]
[372580377,1752691857463,-158.03,0.0002239,4]
[372580378,1752691857473,-159.13,0.0002239,4]
[372580379,1752691857483,-52950.13438887,0.000224,2]
[372580380,1752691857492,-12605.49131908,0.000224,3]
[372580381,1752691857502,-3982.0,0.00022439,2]
[372580382,1752691857512,-3500.0,0.0002246,2]
[372580383,1752691857521,-151.0,0.00022465,7]
[372580384,1752691857531,-151.0,0.00022465,7]
[372580385,1752691857540,-412.62077616,0.00022465,2]
[372580386,1752691857552,-460.0,0.00022465,2]
[372580387,1752691857561,-575.44,0.00022465,2]
[372580388,1752691857571,-460.0,0.00022465,2]
[372580389,1752691857580,-466.78,0.00022465,2]
[372580390,1752691857590,-175.04,0.00022465,2]
[372580391,1752691857599,-634.38,0.00022465,2]
[372580392,1752691857608,-635.4,0.00022465,2]
[372580393,1752691857618,-460.0,0.00022465,2]
[372580394,1752691857627,-479.04,0.00022465,2]
[372580395,1752691857637,-716.68,0.00022465,2]
[372580396,1752691857646,-460.0,0.00022465,2]
[372580397,1752691857656,-861.28,0.00022465,2]
[372580398,1752691857665,-460.0,0.00022465,2]
[372580399,1752691857675,-460.0,0.00022465,2]
[372580400,1752691857684,-569.61,0.00022465,2]
[372580401,1752691857694,-4013.89011524,0.00022465,2]
[372580402,1752691857703,-3294.4,0.00022465,2]
[372580403,1752691857713,-460.0,0.00022465,2]
[372580404,1752691857723,-480.7,0.00022465,2]
[372580405,1752691857733,-490.68,0.00022465,2]
[372580406,1752691857742,-1119.71,0.00022465,2]
[372580407,1752691857752,-460.0,0.00022465,2]
[372580408,1752691857762,-2035.33,0.00022465,2]
[372580409,1752691857772,-460.0,0.00022465,2]
[372580410,1752691857783,-460.0,0.00022465,2]
[372580411,1752691857794,-947.11,0.00022465,2]
[372580412,1752691857803,-1036.43,0.00022465,2]
[372580413,1752691857813,-1338.37,0.00022465,2]
[372580414,1752691857823,-4639.56,0.00022465,2]
[372580415,1752691857833,-857.94,0.00022465,2]
[372580416,1752691857843,-6797.45,0.00022465,2]
[372580417,1752691857852,-626.62,0.00022465,2]
[372580418,1752691857862,-2073.7,0.00022465,2]
[372580419,1752691857872,-460.0,0.00022465,2]
[372580420,1752691857882,-1017.05,0.00022465,2]
[372580421,1752691857892,-4815.32,0.00022465,2]
[372580422,1752691857901,-460.0,0.00022465,2]
[372580423,1752691857911,-4790.96,0.00022465,2]
[372580424,1752691857920,-460.0,0.00022465,2]
[372580425,1752691857930,-657.78,0.00022465,2]
[372580426,1752691857939,-736.37,0.00022465,2]
[372580427,1752691857949,-707.16,0.00022465,2]
[372580428,1752691857958,-1707.87,0.00022465,2]
[372580429,1752691857967,-460.0,0.00022465,2]
[372580430,1752691857977,-672.05,0.00022465,2]
[372580431,1752691857986,-255.91362584,0.00022465,2]
[372580432,1752691857996,-460.0,0.00022465,2]
[372580433,1752691858005,-754.8,0.00022465,2]
[372580434,1752691858014,-2035.47,0.00022465,2]
[372580435,1752691858024,-2856.91,0.00022465,2]
[372580436,1752691858035,-1429.59,0.00022465,2]
[372580437,1752691858044,-694.94,0.00022465,2]
[372580438,1752691858054,-460.0,0.00022465,2]
[372580439,1752691858063,-1651.48,0.00022465,2]
[372580440,1752691858073,-228.54,0.00022465,2]
[372580441,1752691858083,-819.02,0.00022465,2]
[372580442,1752691858093,-524.37,0.00022465,2]
[372580443,1752691858103,-460.0,0.00022465,2]
[372580444,1752691858114,-2569.94,0.00022465,2]
[372580445,1752691858240,-2591.26,0.00022465,2]
[372580446,1752691858251,-604.35,0.00022465,2]
[372580447,1752691858261,-546.21,0.00022465,2]
[372580448,1752691858271,-854.66,0.00022465,2]
[372580449,1752691858282,-2805.27,0.00022465,2]
[372580450,1752691858292,-151.0,0.00022466,2]
[372580451,1752691858304,-151.0,0.00022466,2]
[372580452,1752691858314,-1502.0,0.00022466,2]
[372580453,1752691858323,-198.0,0.00022466,2]
[372580454,1752691858333,-215.20393213,0.00022466,2]
[372580455,1752691858342,-157.13072546,0.00022466,2]
[372580456,1752691858352,-500.0,0.00022466,2]
[372580457,1752691858362,-500.0,0.00022466,2]
[372580458,1752691858372,-198.0,0.00022466,2]
[372580459,1752691858382,-671.0,0.00022466,2]
[372580460,1752691858391,-500.0,0.00022466,2]
[372580461,1752691858402,-500.0,0.00022473,2]
[372580462,1752691858412,-525.44090785,0.00022473,2]
[372580463,1752691858421,-500.0,0.00022473,2]
[372580464,1752691858431,-500.0,0.00022473,2]
[372580465,1752691858440,-500.8009727,0.00022473,2]
[372580466,1752691858451,-500.0,0.00022473,2]
[372580467,1752691858462,-500.0,0.00022473,2]
[372580468,1752691858472,-500.0,0.00022473,2]
[372580469,1752691858483,-500.0,0.00022473,2]
[372580470,1752691858492,-500.0,0.00022473,2]
[372580471,1752691858502,-500.0,0.00022473,2]
[372580472,1752691858511,-150.0,0.00022473,2]
[372580473,1752691858522,-500.0,0.00022473,2]
[372580474,1752691858531,-500.0,0.00022473,2]
[372580475,1752691858541,-500.0,0.00022473,2]
[372580476,1752691858553,-500.0,0.00022473,2]
[372580477,1752691858563,-500.0,0.00022473,2]
[372580478,1752691858573,-500.0,0.00022473,2]
[372580479,1752691858583,-500.0,0.00022473,2]
[372580480,1752691858593,-500.0,0.00022473,2]
[372580481,1752691858603,-500.0,0.00022473,2]
[372580482,1752691858613,-500.0,0.00022473,2]
[372580483,1752691858622,-344.66638024,0.00022473,2]
[372580484,1752691858632,-500.45140818,0.00022473,2]
[372580485,1752691858642,-500.0,0.00022473,2]
[372580486,1752691858651,-500.0,0.00022473,2]
[372580487,1752691858661,-619.6777069,0.00022473,2]
[372580488,1752691858670,-500.0,0.00022473,2]
[372580489,1752691858680,-500.0,0.00022473,2]
[372580490,1752691858690,-500.0,0.00022473,2]
[372580491,1752691858699,-151.0,0.00022473,7]
[372580492,1752691858709,-151.0,0.00022473,7]
[372580493,1752691858719,-151.0,0.00022473,7]
[372580494,1752691858728,-151.0,0.00022473,7]
[372580495,1752691858738,-151.0,0.00022473,7]
[372580496,1752691858747,-1558.96025,0.00022473,7]
[372580497,1752691858756,-1558.96025,0.00022473,7]
[372580498,1752691858766,-318.214047,0.00022473,7]
[372580499,1752691858775,-318.214047,0.00022473,7]
[372580500,1752691858784,-318.214047,0.00022473,7]
[372580501,1752691858796,-318.214047,0.00022473,7]
[372580502,1752691858805,-183.010506,0.00022473,7]
[372580503,1752691858815,-183.010506,0.00022473,7]
[372580504,1752691858824,-151.0,0.00022473,7]
[372580505,1752691858834,-151.0,0.00022473,7]
[372580506,1752691858843,-151.0,0.00022473,7]
[372580507,1752691858852,-151.0,0.00022473,7]
[372580508,1752691858862,-1425.310442,0.00022473,7]
[372580509,1752691858871,-1425.310442,0.00022473,7]
[372580510,1752691858880,-410.3,0.00022476,5]
[372580511,1752691858891,-2561.55421399,0.0002249,2]
[372580512,1752691858902,-913999.96462716,0.0002249,7]
[372580513,1752691859218,-326.00000001,0.00019452,2]
[372580514,1752691859830,-700.73999999,0.00019452,2]
[372580515,1752691859839,-327.87872931,0.00019726,2]
[372580516,1752691859851,-698.86127069,0.00019726,2]
[372580517,1752691859861,-1026.74,0.0002,2]
[372580518,1752691859871,-1026.74,0.00020273,2]
[372580519,1752691859880,-1026.74,0.00020547,2]
[372580520,1752691859890,-1026.74,0.00020821,2]
[372580521,1752691859900,-1026.74,0.00021095,2]
[372580522,1752691859909,-1026.74,0.00021369,2]
[372580523,1752691859919,-1026.74,0.00021643,2]
[372580524,1752691859929,-1026.74,0.00021917,2]
[372580525,1752691859938,-1026.74,0.00022191,2]
[372580526,1752691859947,-1026.74,0.00022465,2]
[372580527,1752691859957,-863.24762023,0.0002249,7]
[372580528,1752691859967,-994.5,0.0002249,7]
[372580529,1752691859978,-1870.17393402,0.0002249,7]
[372580530,1752691860075,-460.0,0.00019178,2]
[372580531,1752691860084,-460.0,0.00019452,2]
[372580532,1752691860095,-460.0,0.00019726,2]
[372580533,1752691860106,-152.0,0.00022256,3]
[372580534,1752691860118,-275900.14897406,0.0002249,7]
[372580535,1752691860128,-156.864641,0.0002249,7]
[372580536,1752691860138,-156.864641,0.0002249,7]
[372580537,1752691860148,-151.0,0.0002249,7]
[372580538,1752691860158,-167.811949,0.0002249,7]
[372580539,1752691860167,-167.811949,0.0002249,7]
[372580540,1752691860176,-151.0,0.0002249,7]
[372580541,1752691860186,-151.0,0.0002249,7]
[372580542,1752691860195,-167.200197,0.0002249,7]
[372580543,1752691860205,-151.0,0.0002249,7]
[372580544,1752691860215,-167.200197,0.0002249,7]
[372580545,1752691860224,-235.488811,0.0002249,7]
[372580546,1752691860233,-235.488811,0.0002249,7]
[372580547,1752691860242,-600.424109,0.0002249,7]
[372580548,1752691860252,-600.424109,0.0002249,7]
[372580549,1752691860263,-151.0,0.0002249,7]
[372580550,1752691860272,-572.346681,0.0002249,7]
[372580551,1752691860282,-823730.79199263,0.0002249,7]
[372580552,1752691860292,-151.0,0.0002249,7]
[372580553,1752691860303,-151.0,0.0002249,7]
[372580554,1752691860312,-151.0,0.0002249,7]
[372580555,1752691860322,-151.0,0.0002249,7]
[372580556,1752691860332,-151.0,0.0002249,7]
[372580557,1752691860342,-1421.256571,0.0002249,7]
[372580558,1752691860352,-1421.256571,0.0002249,7]
[372580559,1752691860361,-151.0,0.0002249,7]
[372580560,1752691860370,-151.0,0.0002249,7]
[372580561,1752691860378,-200.877626,0.0002249,7]
[372580562,1752691860386,-200.877626,0.0002249,7]
[372580563,1752691860395,-200.877626,0.0002249,7]
[372580564,1752691860404,-200.877626,0.0002249,7]
[372580565,1752691860414,-151.0,0.0002249,7]
[372580566,1752691860423,-151.0,0.0002249,7]
[372580567,1752691860433,-151.0,0.0002249,7]
[372580568,1752691860443,-648.256436,0.0002249,7]
[372580569,1752691860452,-648.256436,0.0002249,7]
[372580570,1752691860461,-648.256436,0.0002249,7]
[372580571,1752691860471,-648.256436,0.0002249,7]
[372580572,1752691860480,-513.069827,0.0002249,7]
[372580573,1752691860490,-513.069827,0.0002249,7]
[372580574,1752691860499,-513.069827,0.0002249,7]
[372580575,1752691860508,-513.069827,0.0002249,7]
[372580576,1752691860518,-151.0,0.0002249,7]
[372580577,1752691860528,-151.0,0.0002249,7]
[372580578,1752691860539,-151.0,0.0002249,7]
[372580579,1752691860550,-352.704953,0.0002249,7]
[372580580,1752691860559,-352.704953,0.0002249,7]
[372580581,1752691860569,-1558.96025,0.0002249,7]
[372580582,1752691860578,-1558.96025,0.0002249,7]
[372580583,1752691860587,-1558.96025,0.0002249,7]
[372580584,1752691860597,-1558.96025,0.0002249,7]
[372580585,1752691860606,-151.0,0.0002249,7]
[372580586,1752691860616,-151.0,0.0002249,7]
[372580587,1752691860625,-318.214047,0.0002249,7]
[372580588,1752691860635,-318.214047,0.0002249,7]
[372580589,1752691860765,-318.214047,0.0002249,7]
[372580590,1752691860777,-318.214047,0.0002249,7]
[372580591,1752691860787,-183.010506,0.0002249,7]
[372580592,1752691860799,-183.010506,0.0002249,7]
[372580593,1752691860809,-183.010506,0.0002249,7]
[372580594,1752691860819,-183.010506,0.0002249,7]
[372580595,1752691860828,-259.48036,0.0002249,7]
[372580596,1752691860840,-151.0,0.0002249,7]
[372580597,1752691860850,-151.0,0.0002249,7]
[372580598,1752691860860,-151.0,0.0002249,7]
[372580599,1752691860870,-151.0,0.0002249,7]
[372580600,1752691860881,-151.0,0.0002249,7]
[372580601,1752691860893,-151.0,0.0002249,7]
[372580602,1752691860904,-151.0,0.0002249,7]
[372580603,1752691860914,-151.526342,0.0002249,7]
[372580604,1752691860926,-222.482475,0.0002249,7]
[372580605,1752691860936,-1425.310442,0.0002249,7]
[372580606,1752691860947,-1425.310442,0.0002249,7]
[372580607,1752691860957,-1425.310442,0.0002249,7]
[372580608,1752691860967,-1425.310442,0.0002249,7]
[372580609,1752691860977,-909.246555,0.0002249,7]
[372580610,1752691860987,-909.246555,0.0002249,7]
[372580611,1752691860999,-909.246555,0.0002249,7]
[372580612,1752691861009,-909.246555,0.0002249,7]
[372580613,1752691861018,-1006.41115469,0.000225,2]
[372580614,1752691861028,-49663.33,0.000225,2]
[372580615,1752691861041,-1000.0,0.00022521,2]
[372580616,1752691861055,-1000.0,0.00022521,2]
[372580617,1752691861066,-3982.0,0.0002253,2]
[372580618,1752691861075,-3982.0,0.00022539,2]
[372580619,1752691861086,-3982.0,0.00022554,2]
[372580620,1752691861096,-3982.0,0.00022558,2]
[372580621,1752691861106,-3982.0,0.00022565,2]
[372580622,1752691861117,-160.0,0.00022577,7]
[372580623,1752691861127,-5902.78850771,0.0002259,7]
[372580624,1752691861136,-700.0,0.000226,2]
[372580625,1752691861147,-346.78304288,0.00022603,2]
[372580626,1752691861157,-3982.0,0.00022617,2]
[372580627,1752691861167,-1500.0,0.00022629,2]
[372580628,1752691861177,-1500.0,0.00022629,2]
[372580629,1752691861186,-1500.0,0.00022629,2]
[372580630,1752691861196,-821.62587952,0.00022629,2]
[372580631,1752691861205,-1500.0,0.00022629,2]
[372580632,1752691861215,-500.0,0.00022629,2]
[372580633,1752691861225,-1500.0,0.00022629,2]
[372580634,1752691861234,-153.0,0.0002263,2]
[372580635,1752691861243,-153.0,0.0002263,2]
[372580636,1752691861253,-153.0,0.0002263,2]
[372580637,1752691861263,-153.0,0.0002263,2]
[372580638,1752691861275,-306.0,0.0002263,2]
[372580639,1752691861285,-307.5680692,0.0002263,2]
[372580640,1752691861296,-399.4482582,0.0002263,2]
[372580641,1752691861306,-154.52,0.00022641,2]
[372580642,1752691861315,-306.0,0.00022658,2]
[372580643,1752691861325,-153.0,0.00022658,2]
[372580644,1752691861334,-163.56368296,0.00022661,2]
[372580645,1752691861343,-3982.0,0.00022672,2]
[372580646,1752691861353,-3982.0,0.00022682,2]
[372580647,1752691861363,-178.021619,0.00022685,2]
[372580648,1752691861373,-178.021619,0.00022685,2]
[372580649,1752691861384,-178.021619,0.00022685,2]
[372580650,1752691861394,-178.021619,0.00022685,2]
[372580651,1752691861403,-178.021619,0.00022685,2]
[372580652,1752691861413,-356.043238,0.00022685,2]
[372580653,1752691861423,-178.021619,0.00022685,2]
[372580654,1752691861435,-178.021619,0.00022685,2]
[372580655,1752691861445,-178.021619,0.00022685,2]
[372580656,1752691861457,-178.021619,0.00022685,2]
[372580657,1752691861467,-178.021619,0.00022685,2]
[372580658,1752691861477,-178.021619,0.00022685,2]
[372580659,1752691861487,-178.021619,0.00022685,2]
[372580660,1752691861498,-352.3806961,0.00022685,2]
[372580661,1752691861508,-306.0,0.00022685,2]
[372580662,1752691861518,-153.0,0.00022685,2]
[372580663,1752691861528,-153.0,0.00022685,2]
[372580664,1752691861538,-153.0,0.00022685,2]
[372580665,1752691861548,-153.0,0.00022685,2]
[372580666,1752691861556,-306.0,0.00022685,2]
[372580667,1752691861565,-153.0,0.00022685,2]
[372580668,1752691861574,-153.0,0.00022685,2]
[372580669,1752691861584,-3982.0,0.00022687,2]
[372580670,1752691861594,-3982.0,0.00022702,2]
[372580671,1752691861604,-3982.0,0.00022708,2]
[372580672,1752691861614,-460.0,0.00022739,2]
[372580673,1752691861623,-575.44,0.00022739,2]
[372580674,1752691861633,-460.0,0.00022739,2]
[372580675,1752691861643,-466.78,0.00022739,2]
[372580676,1752691861652,-634.38,0.00022739,2]
[372580677,1752691861662,-635.4,0.00022739,2]
[372580678,1752691861672,-460.0,0.00022739,2]
[372580679,1752691861682,-479.04,0.00022739,2]
[372580680,1752691861691,-716.68,0.00022739,2]
[372580681,1752691861701,-460.0,0.00022739,2]
[372580682,1752691861711,-861.28,0.00022739,2]
[372580683,1752691861720,-460.0,0.00022739,2]
[372580684,1752691861730,-460.0,0.00022739,2]
[372580685,1752691861739,-569.61,0.00022739,2]
[372580686,1752691861749,-3294.4,0.00022739,2]
[372580687,1752691861759,-396.27,0.00022739,2]
[372580688,1752691861769,-480.7,0.00022739,2]
[372580689,1752691861779,-490.68,0.00022739,2]
[372580690,1752691861788,-1119.71,0.00022739,2]
[372580691,1752691861799,-460.0,0.00022739,2]